[Event "Late-Titled-Tuesday-Blitz-October-10-2023"]
[Site "Chess.com"]
[Date "2023.10.10"]
[Round "11"]
[White "GothamChess"]
[Black "koncheto"]
[Result "1-0"]
[WhiteElo "2749"]
[BlackElo "2539"]
[TimeControl "180+1"]
[EndTime "16:01:58 PDT"]
[Termination "GothamChess won by checkmate"]

1. e4 {[%clk 0:03:00]} 1... c5 {[%clk 0:02:57]} 2. Nc3 {[%clk 0:03:00.1]} 2...
Nc6 {[%clk 0:02:55]} 3. Bb5 {[%clk 0:02:59.6]} 3... Nd4 {[%clk 0:02:55.3]} 4.
Nf3 {[%clk 0:02:59.5]} 4... e6 {[%clk 0:02:49.7]} 5. O-O {[%clk 0:02:58.6]} 5...
a6 {[%clk 0:02:45.3]} 6. Bd3 {[%clk 0:02:58.2]} 6... g6 {[%clk 0:02:44.3]} 7.
Nxd4 {[%clk 0:02:56.1]} 7... cxd4 {[%clk 0:02:45.2]} 8. Ne2 {[%clk 0:02:56.3]}
8... Bg7 {[%clk 0:02:45.8]} 9. c3 {[%clk 0:02:56.6]} 9... dxc3 {[%clk 0:02:45]}
10. bxc3 {[%clk 0:02:47.5]} 10... d5 {[%clk 0:02:35.5]} 11. exd5 {[%clk
0:02:41.5]} 11... Qxd5 {[%clk 0:02:34.9]} 12. Nf4 {[%clk 0:02:37.3]} 12... Qd6
{[%clk 0:02:21.9]} 13. Qf3 {[%clk 0:02:28.6]} 13... Ne7 {[%clk 0:02:16.4]} 14.
a4 {[%clk 0:02:23.8]} 14... O-O {[%clk 0:02:12.6]} 15. Ba3 {[%clk 0:02:19]}
15... Qc7 {[%clk 0:02:12.6]} 16. Rab1 {[%clk 0:02:10.4]} 16... Rd8 {[%clk
0:01:53.5]} 17. h4 {[%clk 0:01:57.4]} 17... Nc6 {[%clk 0:01:39.8]} 18. Be4
{[%clk 0:01:41.3]} 18... Ne5 {[%clk 0:01:32.7]} 19. Qe2 {[%clk 0:01:34.4]} 19...
Nc4 {[%clk 0:01:25.8]} 20. Bc1 {[%clk 0:01:33.8]} 20... Qxf4 {[%clk 0:01:14]}
21. Qxc4 {[%clk 0:01:34]} 21... Qxh4 {[%clk 0:01:12.3]} 22. g3 {[%clk
0:01:30.6]} 22... Qg4 {[%clk 0:01:03.8]} 23. Re1 {[%clk 0:01:19]} 23... Bd7
{[%clk 0:00:42.6]} 24. Rxb7 {[%clk 0:01:12.1]} 24... h5 {[%clk 0:00:32.2]} 25.
a5 {[%clk 0:00:51.9]} 25... Bb5 {[%clk 0:00:24.9]} 26. Qc7 {[%clk 0:00:21.3]}
26... Rd7 {[%clk 0:00:24.7]} 27. Qb6 {[%clk 0:00:21.4]} 27... Rad8 {[%clk
0:00:17.9]} 28. Rxd7 {[%clk 0:00:16.1]} 28... Rxd7 {[%clk 0:00:18.8]} 29. Qe3
{[%clk 0:00:13.9]} 29... h4 {[%clk 0:00:17.4]} 30. d4 {[%clk 0:00:12]} 30...
hxg3 {[%clk 0:00:11]} 31. Qxg3 {[%clk 0:00:12]} 31... Qh5 {[%clk 0:00:11.4]} 32.
Bf4 {[%clk 0:00:08.6]} 32... Bc4 {[%clk 0:00:11]} 33. Kg2 {[%clk 0:00:08.5]}
33... Bd5 {[%clk 0:00:10.8]} 34. f3 {[%clk 0:00:07.8]} 34... Bxe4 {[%clk
0:00:10.6]} 35. fxe4 {[%clk 0:00:08.7]} 35... Qxa5 {[%clk 0:00:11.1]} 36. e5
{[%clk 0:00:04.9]} 36... Rc7 {[%clk 0:00:10.6]} 37. Re3 {[%clk 0:00:04.3]} 37...
Qa2+ {[%clk 0:00:10.3]} 38. Qf2 {[%clk 0:00:04.8]} 38... Qxf2+ {[%clk
0:00:09.8]} 39. Kxf2 {[%clk 0:00:05.7]} 39... a5 {[%clk 0:00:10.5]} 40. Ke2
{[%clk 0:00:05.7]} 40... Ra7 {[%clk 0:00:10.2]} 41. Kd3 {[%clk 0:00:06.1]} 41...
Kh7 {[%clk 0:00:09.9]} 42. Re2 {[%clk 0:00:06.5]} 42... a4 {[%clk 0:00:07.9]}
43. Rh2+ {[%clk 0:00:07]} 43... Kg8 {[%clk 0:00:08]} 44. Ra2 {[%clk 0:00:07.9]}
44... Bf8 {[%clk 0:00:07.5]} 45. c4 {[%clk 0:00:08]} 45... Bb4 {[%clk 0:00:06]}
46. d5 {[%clk 0:00:06.5]} 46... exd5 {[%clk 0:00:05.3]} 47. cxd5 {[%clk
0:00:07.4]} 47... Kf8 {[%clk 0:00:05.6]} 48. Be3 {[%clk 0:00:07.8]} 48... Ra5
{[%clk 0:00:05.1]} 49. Kc4 {[%clk 0:00:08.3]} 49... Be1 {[%clk 0:00:05.2]} 50.
Bb6 {[%clk 0:00:06.9]} 50... Ra8 {[%clk 0:00:04.2]} 51. Bc5+ {[%clk 0:00:07.3]}
51... Ke8 {[%clk 0:00:03.8]} 52. Rh2 {[%clk 0:00:06.9]} 52... Kd7 {[%clk
0:00:03.4]} 53. Re2 {[%clk 0:00:06.6]} 53... Bh4 {[%clk 0:00:03]} 54. Re4 {[%clk
0:00:05.9]} 54... Be7 {[%clk 0:00:02.3]} 55. e6+ {[%clk 0:00:03.5]} 55... fxe6
{[%clk 0:00:02.6]} 56. dxe6+ {[%clk 0:00:04.1]} 56... Ke8 {[%clk 0:00:03.1]} 57.
Bd4 {[%clk 0:00:02.3]} 57... a3 {[%clk 0:00:03.2]} 58. Ba1 {[%clk 0:00:02.7]}
58... a2 {[%clk 0:00:03.2]} 59. Rf4 {[%clk 0:00:02.9]} 59... g5 {[%clk
0:00:03.5]} 60. Rf5 {[%clk 0:00:03.2]} 60... g4 {[%clk 0:00:03.3]} 61. Rh5
{[%clk 0:00:03.3]} 61... Bf8 {[%clk 0:00:03.2]} 62. Rh7 {[%clk 0:00:03.3]} 62...
g3 {[%clk 0:00:03.5]} 63. Rh8 {[%clk 0:00:03.3]} 63... Ra4+ {[%clk 0:00:03.6]}
64. Kd5 {[%clk 0:00:03.4]} 64... Rg4 {[%clk 0:00:04.2]} 65. Rh7 {[%clk
0:00:02.1]} 65... g2 {[%clk 0:00:04.5]} 66. Ra7 {[%clk 0:00:02.6]} 66... Be7
{[%clk 0:00:04.5]} 67. Ra8+ {[%clk 0:00:02.8]} 67... Bd8 {[%clk 0:00:04.1]} 68.
Bf6 {[%clk 0:00:03.7]} 68... g1=Q {[%clk 0:00:01]} 69. Rxd8# {[%clk 0:00:03.5]}
1-0

[Event "Late-Titled-Tuesday-Blitz-October-10-2023"]
[Site "Chess.com"]
[Date "2023.10.10"]
[Round "11"]
[White "karinachess1"]
[Black "NovikovaGalina"]
[Result "1-0"]
[WhiteElo "2586"]
[BlackElo "2444"]
[TimeControl "180+1"]
[EndTime "16:02:04 PDT"]
[Termination "karinachess1 won on time"]

1. d4 {[%clk 0:03:00.9]} 1... e5 {[%clk 0:02:58]} 2. d5 {[%clk 0:02:56.3]} 2...
Bc5 {[%clk 0:02:56.9]} 3. e3 {[%clk 0:02:44.6]} 3... d6 {[%clk 0:02:55.8]} 4.
Nf3 {[%clk 0:02:40.6]} 4... Ne7 {[%clk 0:02:55.8]} 5. Be2 {[%clk 0:02:34.6]}
5... O-O {[%clk 0:02:55.1]} 6. O-O {[%clk 0:02:34.9]} 6... h6 {[%clk 0:02:54.6]}
7. a3 {[%clk 0:02:34.1]} 7... a5 {[%clk 0:02:54]} 8. c4 {[%clk 0:02:32.5]} 8...
f5 {[%clk 0:02:53.1]} 9. Nc3 {[%clk 0:02:32.4]} 9... Nd7 {[%clk 0:02:48.1]} 10.
Ne1 {[%clk 0:02:28.6]} 10... Nf6 {[%clk 0:02:46.6]} 11. Nd3 {[%clk 0:02:27.7]}
11... Ba7 {[%clk 0:02:43.6]} 12. b4 {[%clk 0:02:25.1]} 12... axb4 {[%clk
0:02:42.9]} 13. axb4 {[%clk 0:02:26]} 13... Bd7 {[%clk 0:02:38]} 14. Qb3 {[%clk
0:02:25.4]} 14... Ne4 {[%clk 0:02:26.7]} 15. Qc2 {[%clk 0:01:51.6]} 15... Qe8
{[%clk 0:02:05.4]} 16. Ne1 {[%clk 0:01:41.5]} 16... Qg6 {[%clk 0:01:53]} 17. Bd3
{[%clk 0:01:33.5]} 17... Nxc3 {[%clk 0:01:47]} 18. Qxc3 {[%clk 0:01:34.4]} 18...
Qf7 {[%clk 0:01:25.5]} 19. Nc2 {[%clk 0:01:27.8]} 19... Ng6 {[%clk 0:01:23.1]}
20. Kh1 {[%clk 0:01:18.3]} 20... Nh4 {[%clk 0:01:09.4]} 21. g3 {[%clk 0:01:10]}
21... Nf3 {[%clk 0:01:09.2]} 22. Be2 {[%clk 0:01:10.1]} 22... Ng5 {[%clk
0:01:08.7]} 23. f3 {[%clk 0:01:01.7]} 23... Kh8 {[%clk 0:00:53.4]} 24. Bb2
{[%clk 0:00:52.8]} 24... Bb6 {[%clk 0:00:34.7]} 25. c5 {[%clk 0:00:47.7]} 25...
Ba7 {[%clk 0:00:18.8]} 26. Rad1 {[%clk 0:00:39.7]} 26... Rac8 {[%clk 0:00:10.4]}
27. Na3 {[%clk 0:00:28.3]} 27... Qe7 {[%clk 0:00:06.4]} 28. c6 {[%clk
0:00:24.8]} 28... bxc6 {[%clk 0:00:06.3]} 29. dxc6 {[%clk 0:00:25.7]} 29... Be6
{[%clk 0:00:06.3]} 30. Bc4 {[%clk 0:00:20.4]} 30... Qf7 {[%clk 0:00:03.9]} 31.
Bxe6 {[%clk 0:00:13.8]} 31... Qxe6 {[%clk 0:00:04.8]} 32. b5 {[%clk 0:00:09.7]}
32... Qg6 {[%clk 0:00:02.1]} 33. Qc2 {[%clk 0:00:08.3]} 33... Ne6 {[%clk
0:00:01.8]} 34. Qe2 {[%clk 0:00:07.8]} 34... Nc5 {[%clk 0:00:01.6]} 35. Nc4
{[%clk 0:00:07.8]} 35... Na4 {[%clk 0:00:02.5]} 36. Ba1 {[%clk 0:00:07.7]} 36...
Nc5 {[%clk 0:00:02.9]} 37. Rb1 {[%clk 0:00:06.6]} 37... Ne6 {[%clk 0:00:03.2]}
38. Rfd1 {[%clk 0:00:06.5]} 38... Bc5 {[%clk 0:00:02.4]} 39. Bc3 {[%clk
0:00:05.8]} 39... e4 {[%clk 0:00:02.5]} 40. f4 {[%clk 0:00:05.4]} 40... Qf7
{[%clk 0:00:01.7]} 41. Ba1 {[%clk 0:00:04.6]} 41... Kh7 {[%clk 0:00:02.2]} 42.
Bc3 {[%clk 0:00:04.7]} 42... Nd8 {[%clk 0:00:01.5]} 43. Be1 {[%clk 0:00:04.1]}
43... Ne6 {[%clk 0:00:02.4]} 44. Bf2 {[%clk 0:00:03.9]} 44... Qg6 {[%clk
0:00:02.7]} 45. Be1 {[%clk 0:00:03.4]} 45... Qf7 {[%clk 0:00:03.3]} 46. Na5
{[%clk 0:00:03.6]} 46... Qg6 {[%clk 0:00:02.7]} 47. Nb7 {[%clk 0:00:04.2]} 47...
Bb6 {[%clk 0:00:02.4]} 48. Rbc1 {[%clk 0:00:04.7]} 48... Ra8 {[%clk 0:00:02.4]}
49. Bb4 {[%clk 0:00:04.4]} 49... Ra4 {[%clk 0:00:02.3]} 50. Bc3 {[%clk
0:00:04.5]} 50... Qf7 {[%clk 0:00:02.9]} 51. Be1 {[%clk 0:00:04.3]} 51... Nd8
{[%clk 0:00:03.5]} 52. Nxd8 {[%clk 0:00:03.9]} 52... Rxd8 {[%clk 0:00:04.4]} 53.
Ra1 {[%clk 0:00:04.4]} 53... Rxa1 {[%clk 0:00:04.1]} 54. Rxa1 {[%clk 0:00:05.3]}
54... Qf6 {[%clk 0:00:04.5]} 55. Ra2 {[%clk 0:00:04.2]} 55... Qe6 {[%clk
0:00:05]} 56. Bf2 {[%clk 0:00:04.3]} 56... Re8 {[%clk 0:00:04.8]} 57. Kg2 {[%clk
0:00:04.6]} 57... Qb3 {[%clk 0:00:04.9]} 58. Rb2 {[%clk 0:00:04.6]} 58... Qc3
{[%clk 0:00:05]} 59. Rc2 {[%clk 0:00:04.9]} 59... Qb3 {[%clk 0:00:05.2]} 60. Rb2
{[%clk 0:00:04.9]} 60... Qc3 {[%clk 0:00:05.3]} 61. Rd2 {[%clk 0:00:04.4]} 61...
Ra8 {[%clk 0:00:04.2]} 62. Rd5 {[%clk 0:00:04.4]} 62... Ra1 {[%clk 0:00:04.5]}
63. Rxf5 {[%clk 0:00:04]} 63... Qc1 {[%clk 0:00:04.8]} 64. Kh3 {[%clk
0:00:03.6]} 64... Rb1 {[%clk 0:00:03.5]} 65. Rf7 {[%clk 0:00:01.6]} 65... Rb2
{[%clk 0:00:03.7]} 66. Qg4 {[%clk 0:00:01.9]} 66... Qf1+ {[%clk 0:00:03.2]} 67.
Kh4 {[%clk 0:00:02.3]} 1-0

[Event "Late-Titled-Tuesday-Blitz-October-10-2023"]
[Site "Chess.com"]
[Date "2023.10.10"]
[Round "11"]
[White "tgpgoat"]
[Black "Korchmar_Vasiliy"]
[Result "0-1"]
[WhiteElo "2561"]
[BlackElo "2773"]
[TimeControl "180+1"]
[EndTime "16:02:26 PDT"]
[Termination "Korchmar_Vasiliy won by resignation"]

1. Nf3 {[%clk 0:03:00.9]} 1... d5 {[%clk 0:03:00]} 2. g3 {[%clk 0:02:52.7]} 2...
c5 {[%clk 0:02:59.8]} 3. Bg2 {[%clk 0:02:53.1]} 3... Nf6 {[%clk 0:02:59.8]} 4.
O-O {[%clk 0:02:51.3]} 4... e6 {[%clk 0:03:00.4]} 5. d4 {[%clk 0:02:51]} 5...
cxd4 {[%clk 0:02:58.5]} 6. Nxd4 {[%clk 0:02:51.9]} 6... e5 {[%clk 0:02:57.8]} 7.
Nb3 {[%clk 0:02:51.6]} 7... a5 {[%clk 0:02:55.8]} 8. Bg5 {[%clk 0:02:48.2]} 8...
a4 {[%clk 0:02:51.3]} 9. Nc1 {[%clk 0:02:46.2]} 9... Nbd7 {[%clk 0:02:46.7]} 10.
Bxd5 {[%clk 0:02:40.4]} 10... Qb6 {[%clk 0:02:46.8]} 11. b3 {[%clk 0:02:29.2]}
11... Bc5 {[%clk 0:02:40.6]} 12. Nc3 {[%clk 0:02:25.1]} 12... Bd4 {[%clk
0:02:36.1]} 13. Bd2 {[%clk 0:02:06.7]} 13... Bxc3 {[%clk 0:01:35.1]} 14. Bxc3
{[%clk 0:02:05.2]} 14... Qc5 {[%clk 0:01:35.4]} 15. Bb2 {[%clk 0:01:32.2]} 15...
Qxd5 {[%clk 0:01:31.2]} 16. Qe1 {[%clk 0:01:27.7]} 16... a3 {[%clk 0:01:29.4]}
17. Bc3 {[%clk 0:01:26.2]} 17... O-O {[%clk 0:01:29.3]} 18. Nd3 {[%clk
0:01:25.5]} 18... Re8 {[%clk 0:01:19.5]} 19. Rd1 {[%clk 0:01:22.4]} 19... Qe4
{[%clk 0:01:15.3]} 20. Qd2 {[%clk 0:01:16.8]} 20... Nf8 {[%clk 0:01:09.6]} 21.
f3 {[%clk 0:01:12.4]} 21... Qd5 {[%clk 0:01:06.1]} 22. Nxe5 {[%clk 0:01:10.7]}
22... Rxe5 {[%clk 0:01:04]} 23. Qf4 {[%clk 0:00:38.6]} 23... Rf5 {[%clk
0:00:53.1]} 24. Rxd5 {[%clk 0:00:38.4]} 24... Rxf4 {[%clk 0:00:53.2]} 25. Rd8
{[%clk 0:00:39.3]} 25... Rf5 {[%clk 0:00:47]} 26. Bb4 {[%clk 0:00:39.5]} 26...
Nd7 {[%clk 0:00:44.4]} 27. Rd1 {[%clk 0:00:39.2]} 27... Rb5 {[%clk 0:00:36.6]}
28. R1xd7 {[%clk 0:00:22.6]} 28... Bxd7 {[%clk 0:00:32.1]} 29. Rxa8 {[%clk
0:00:21.8]} 29... Rxb4 {[%clk 0:00:32.5]} 30. Rxa3 {[%clk 0:00:21.7]} 30... Rd4
{[%clk 0:00:32.6]} 31. Kf2 {[%clk 0:00:20.6]} 31... Rd2 {[%clk 0:00:31.7]} 32.
c4 {[%clk 0:00:19.9]} 32... Bc6 {[%clk 0:00:28.1]} 33. Ke3 {[%clk 0:00:20]}
33... Rb2 {[%clk 0:00:27.7]} 34. Ra8 {[%clk 0:00:19.9]} 34... g6 {[%clk
0:00:25.4]} 35. h4 {[%clk 0:00:19]} 35... Kg7 {[%clk 0:00:25.5]} 36. g4 {[%clk
0:00:18.4]} 36... Ne6 {[%clk 0:00:25]} 37. Rc8 {[%clk 0:00:17]} 37... Rxa2
{[%clk 0:00:23.5]} 38. b4 {[%clk 0:00:16.9]} 38... Ra3+ {[%clk 0:00:21.7]} 39.
Kf2 {[%clk 0:00:16.4]} 39... Rb3 {[%clk 0:00:21.1]} 40. b5 {[%clk 0:00:16.3]}
40... Bxb5 {[%clk 0:00:21.6]} 41. cxb5 {[%clk 0:00:17.2]} 41... Rxb5 {[%clk
0:00:22.1]} 42. Rb8 {[%clk 0:00:14.4]} 42... Rb2 {[%clk 0:00:22.2]} 43. Ke3
{[%clk 0:00:14.5]} 43... b5 {[%clk 0:00:22.6]} 44. Kd3 {[%clk 0:00:13.9]} 44...
b4 {[%clk 0:00:21.5]} 45. e3 {[%clk 0:00:13.1]} 45... Rb1 {[%clk 0:00:20]} 46.
Kc2 {[%clk 0:00:13.1]} 46... Rf1 {[%clk 0:00:17.3]} 47. f4 {[%clk 0:00:13.1]}
47... Re1 {[%clk 0:00:15.2]} 48. Kd2 {[%clk 0:00:12.9]} 48... Rb1 {[%clk
0:00:14]} 49. Kc2 {[%clk 0:00:13.4]} 49... Rh1 {[%clk 0:00:13.9]} 50. f5 {[%clk
0:00:11.7]} 50... gxf5 {[%clk 0:00:12.9]} 51. gxf5 {[%clk 0:00:12.6]} 51... Nc5
{[%clk 0:00:11.8]} 52. Rxb4 {[%clk 0:00:12.2]} 52... Rf1 {[%clk 0:00:09.2]} 53.
Rg4+ {[%clk 0:00:11.5]} 53... Kf6 {[%clk 0:00:09]} 54. e4 {[%clk 0:00:09.7]}
54... Re1 {[%clk 0:00:08.7]} 55. Rg5 {[%clk 0:00:06.6]} 55... Rxe4 {[%clk
0:00:08.7]} 56. Rh5 {[%clk 0:00:06.9]} 56... Kg7 {[%clk 0:00:09]} 57. f6+ {[%clk
0:00:06.7]} 57... Kxf6 {[%clk 0:00:08]} 58. Rxc5 {[%clk 0:00:07.2]} 58... Rxh4
{[%clk 0:00:08.2]} 59. Kd3 {[%clk 0:00:07.7]} 59... Rf4 {[%clk 0:00:06.2]} 60.
Ke3 {[%clk 0:00:08.2]} 60... Rf5 {[%clk 0:00:06.4]} 61. Rc6+ {[%clk 0:00:08.6]}
61... Kg5 {[%clk 0:00:06.4]} 62. Ke4 {[%clk 0:00:09.2]} 62... h5 {[%clk
0:00:05.4]} 63. Rc8 {[%clk 0:00:09.5]} 63... Rf4+ {[%clk 0:00:05.8]} 64. Ke3
{[%clk 0:00:09.5]} 64... Rf6 {[%clk 0:00:05.7]} 65. Rg8+ {[%clk 0:00:08]} 65...
Kh4 {[%clk 0:00:05.8]} 66. Ke2 {[%clk 0:00:07.5]} 66... Kh3 {[%clk 0:00:05.9]}
67. Ke3 {[%clk 0:00:07.7]} 67... h4 {[%clk 0:00:06.4]} 68. Ke2 {[%clk
0:00:08.2]} 68... Kh2 {[%clk 0:00:06.6]} 69. Rh8 {[%clk 0:00:08.9]} 69... h3
{[%clk 0:00:07]} 70. Rh7 {[%clk 0:00:09.3]} 70... Rf5 {[%clk 0:00:07.2]} 71. Ke3
{[%clk 0:00:09.5]} 71... f6 {[%clk 0:00:07.1]} 72. Ke2 {[%clk 0:00:10]} 72...
Kg2 {[%clk 0:00:07.2]} 73. Rg7+ {[%clk 0:00:04.6]} 73... Kh1 {[%clk 0:00:06.9]}
74. Rh7 {[%clk 0:00:04.6]} 74... h2 {[%clk 0:00:07.3]} 75. Rh8 {[%clk
0:00:04.3]} 75... Kg2 {[%clk 0:00:06.7]} 76. Rg8+ {[%clk 0:00:03.9]} 76... Rg5
{[%clk 0:00:07.2]} 77. Rf8 {[%clk 0:00:04.3]} 77... h1=Q {[%clk 0:00:07.1]} 78.
Rxf6 {[%clk 0:00:04.8]} 78... Re5+ {[%clk 0:00:07.5]} 79. Kd3 {[%clk 0:00:04.8]}
79... Qd1+ {[%clk 0:00:07.7]} 80. Kc4 {[%clk 0:00:05.1]} 80... Re4+ {[%clk
0:00:08.1]} 81. Kc5 {[%clk 0:00:05.6]} 81... Qd4+ {[%clk 0:00:08.3]} 82. Kc6
{[%clk 0:00:06.5]} 82... Qxf6+ {[%clk 0:00:08.6]} 0-1